{"text_format":"1","workbook":"xlsx","n_sheets":3,"sheets":["Hoja1","Por confirmar en corral","Tablas"],"not_rendered":{"charts":0,"images":1,"macros":1,"external_links":0,"defined_names":1,"comments":2,"pivot_tables":0},"unopened":[],"bounds":{"document_bytes":16777216,"sheet_cells":100000,"rows_first":2000,"rows_last":500,"rows_between":2000,"halvings":0,"cell_chars":16384,"cell_head_chars":4096},"cells_cut":0,"cells_raw":0,"read":"whole","date_system":"1900"}

{"sheet":"Hoja1","index":0,"n_rows":54,"n_cols":33,"rows_kept":54,"cut":false,"hidden":false,"merged":[]}
[]
[null,null,null,"CORRAL N°1 - Calle Maipú"]
[null,null,null,"VEHICULOS EN CUSTODIA"]
[]
[]
["N°","PPU","fecha ingreso","Tipo","Costo diario corral","Marca","Modelo","Año Fab.","Color","Motivo de Ingreso","Tribunal","CAUSA ROL/RIT/RUT","Propietario","DIAS EN CORRAL ","MONTO ADEUDADO","Fecha retiro de corral","Monto pagado","Link documentos entrega ",null,null,null,null,null,null,null,null,null,null,null,null,null,null,"Tipo vehículo"]
[55,"AW505","2017-10-06","MOTO",{"$f":"IF(Tabla1[[#This Row],[Tipo]]=\"\",\"Sin tipo vehículo\",LOOKUP(Tabla1[[#This Row],[Tipo]],Tabla2[Tipo vehículo],Tabla2[Valor diario]))","v":317.26},"HONDA","CB 150F",2014,"NEGRO","DOCUMENTACION VENCIDA","JUZGADO POLICIA LOCAL","Parte 1243-2017","RODRIGO ANDRES PEREZ PRIETO",{"$f":"IF(Tabla1[[#This Row],[fecha ingreso]]=\"\",\"Sin fecha ingreso\",TODAY()-Tabla1[[#This Row],[fecha ingreso]])","v":2222},{"$f":"Tabla1[[#This Row],[DIAS EN CORRAL ]]*Tabla1[[#This Row],[Costo diario corral]]","v":704951.72},null,null,null,null,null,null,null,null,null,null,null,null,null,null,null,null,null,"Automovil"]
[1,"BC5960","2015-06-16","Automovil",{"$f":"IF(Tabla1[[#This Row],[Tipo]]=\"\",\"Sin tipo vehículo\",LOOKUP(Tabla1[[#This Row],[Tipo]],Tabla2[Tipo vehículo],Tabla2[Valor diario]))","v":1586},"NISSAN","HLB 11 FW1",1989,"BLANCO","DOC. VENCIDO","JUZGADO POLICIA LOCAL","RUT:16.133.805-9","LUIS ERNESTO  VILLEGAS VASQUEZ",{"$f":"IF(Tabla1[[#This Row],[fecha ingreso]]=\"\",\"Sin fecha ingreso\",TODAY()-Tabla1[[#This Row],[fecha ingreso]])","v":3065},{"$f":"IF(Tabla1[[#This Row],[fecha ingreso]]=\"\",\"Falta tipo vehículo\",Tabla1[[#This Row],[Costo diario corral]]*Tabla1[[#This Row],[DIAS EN CORRAL ]])","v":4861090},null,null,null,null,null,null,null,null,null,null,null,null,null,null,null,null,null,"Biciceta o similar"]
[2,"BT6472","2016-08-21","Camioneta",{"$f":"IF(Tabla1[[#This Row],[Tipo]]=\"\",\"Sin tipo vehículo\",LOOKUP(Tabla1[[#This Row],[Tipo]],Tabla2[Tipo vehículo],Tabla2[Valor diario]))","v":1586},"CHEVROLET","LUV KB28L",1987,"AZUL","SIN DOCUMENTOS","JUZGADO POLICIA LOCAL","PARTE 1180","LAUTARO ZAMBRANO DIAZ",{"$f":"IF(Tabla1[[#This Row],[fecha ingreso]]=\"\",\"Sin fecha ingreso\",TODAY()-Tabla1[[#This Row],[fecha ingreso]])","v":2633},{"$f":"IF(Tabla1[[#This Row],[fecha ingreso]]=\"\",\"Falta tipo vehículo\",Tabla1[[#This Row],[Costo diario corral]]*Tabla1[[#This Row],[DIAS EN CORRAL ]])","v":4175938},null,null,null,null,null,null,null,null,null,null,null,null,null,null,null,null,null,"Bus"]
[28,"BZDX28","2021-03-16","Automovil",{"$f":"IF(Tabla1[[#This Row],[Tipo]]=\"\",\"Sin tipo vehículo\",LOOKUP(Tabla1[[#This Row],[Tipo]],Tabla2[Tipo vehículo],Tabla2[Valor diario]))","v":1586},"CHEVROLET","AVEO LS 1.4",2009,"ROJO FLAME","DOC. VENCIDO","JUZGADO POLICIA LOCAL","Of.  97 del 30-01-2021","MAGDALENA DEL ROSARIO TAPIA OLIVARES",{"$f":"IF(Tabla1[[#This Row],[fecha ingreso]]=\"\",\"Sin fecha ingreso\",TODAY()-Tabla1[[#This Row],[fecha ingreso]])","v":965},{"$f":"IF(Tabla1[[#This Row],[fecha ingreso]]=\"\",\"Falta tipo vehículo\",Tabla1[[#This Row],[Costo diario corral]]*Tabla1[[#This Row],[DIAS EN CORRAL ]])","v":1530490},null,null,null,null,null,null,null,null,null,null,null,null,null,null,null,null,null,"Camión"]
[29,"CRZP80","2016-04-28","Automovil",{"$f":"IF(Tabla1[[#This Row],[Tipo]]=\"\",\"Sin tipo vehículo\",LOOKUP(Tabla1[[#This Row],[Tipo]],Tabla2[Tipo vehículo],Tabla2[Valor diario]))","v":1586},"CHEVROLET ","SPARK",2010,"PLATEADO ","DOCUMENTACION VENCIDA","JUZGADO POLICIA LOCAL","PARTE 462, OF. 173/2016 DE CARABINEROS","SALVADOR SILVA CORNEJO",{"$f":"IF(Tabla1[[#This Row],[fecha ingreso]]=\"\",\"Sin fecha ingreso\",TODAY()-Tabla1[[#This Row],[fecha ingreso]])","v":2748},{"$f":"IF(Tabla1[[#This Row],[fecha ingreso]]=\"\",\"Falta tipo vehículo\",Tabla1[[#This Row],[Costo diario corral]]*Tabla1[[#This Row],[DIAS EN CORRAL ]])","v":4358328},null,null,null,null,null,null,null,null,null,null,null,null,null,null,null,null,null,"Camioneta"]
[33,"CY1238","2016-04-28","Automovil",{"$f":"IF(Tabla1[[#This Row],[Tipo]]=\"\",\"Sin tipo vehículo\",LOOKUP(Tabla1[[#This Row],[Tipo]],Tabla2[Tipo vehículo],Tabla2[Valor diario]))","v":1586},"SUBARU","700 5 GL",1983,"ROJO","Documentación vencida","JUZGADO POLICIA LOCAL","Parte 462-2016","JORGE ALBERTO AGUILERA PLAZA",{"$f":"IF(Tabla1[[#This Row],[fecha ingreso]]=\"\",\"Sin fecha ingreso\",TODAY()-Tabla1[[#This Row],[fecha ingreso]])","v":2748},{"$f":"IF(Tabla1[[#This Row],[fecha ingreso]]=\"\",\"Falta tipo vehículo\",Tabla1[[#This Row],[Costo diario corral]]*Tabla1[[#This Row],[DIAS EN CORRAL ]])","v":4358328},null,null,null,null,null,null,null,null,null,null,null,null,null,null,null,null,null,"Carro arrastre"]
[40,"DB1001","2021-01-07","Automovil",{"$f":"IF(Tabla1[[#This Row],[Tipo]]=\"\",\"Sin tipo vehículo\",LOOKUP(Tabla1[[#This Row],[Tipo]],Tabla2[Tipo vehículo],Tabla2[Valor diario]))","v":1586},"VOLKSWAGEN","AMAZON GLS ",1990,"ROJO BERMELLON","Documentación vencida","JUZGADO POLICIA LOCAL","Sin antecedentes","AMADO ROJAS",{"$f":"IF(Tabla1[[#This Row],[fecha ingreso]]=\"\",\"Sin fecha ingreso\",TODAY()-Tabla1[[#This Row],[fecha ingreso]])","v":1033},{"$f":"IF(Tabla1[[#This Row],[fecha ingreso]]=\"\",\"Falta tipo vehículo\",Tabla1[[#This Row],[Costo diario corral]]*Tabla1[[#This Row],[DIAS EN CORRAL ]])","v":1638338},null,null,null,null,null,null,null,null,null,null,null,null,null,null,null,null,null,"Cuatrimoto"]
[3,"DJ7830","2021-08-10","Automovil",{"$f":"IF(Tabla1[[#This Row],[Tipo]]=\"\",\"Sin tipo vehículo\",LOOKUP(Tabla1[[#This Row],[Tipo]],Tabla2[Tipo vehículo],Tabla2[Valor diario]))","v":1586},"TOYOTA","COROLLA 1.3 GL SEDAN",1991,"BLANCO","DOCUMENTACION VENCIDA","CARABINEROS DE CASABLANCA","OFICIO : 554","PAMELA VERONICA VILLALOBOS RUIZ",{"$f":"IF(Tabla1[[#This Row],[fecha ingreso]]=\"\",\"Sin fecha ingreso\",TODAY()-Tabla1[[#This Row],[fecha ingreso]])","v":818},{"$f":"IF(Tabla1[[#This Row],[fecha ingreso]]=\"\",\"Falta tipo vehículo\",Tabla1[[#This Row],[Costo diario corral]]*Tabla1[[#This Row],[DIAS EN CORRAL ]])","v":1297348},null,null,null,null,null,null,null,null,null,null,null,null,null,null,null,null,null,"Furgón"]
[50,"DKX011","2018-07-11","Moto",{"$f":"IF(Tabla1[[#This Row],[Tipo]]=\"\",\"Sin tipo vehículo\",LOOKUP(Tabla1[[#This Row],[Tipo]],Tabla2[Tipo vehículo],Tabla2[Valor diario]))","v":317.26},"MOTORRAD","TTX 250CC",2016,"ROJO","Accidente ocurrido camino a Tapihue","JUZGADO POLICIA LOCAL","Parte 882, Of. 387 de fecha 10-07-2018","LUIS ROLANDO VARELA SALGADO",{"$f":"IF(Tabla1[[#This Row],[fecha ingreso]]=\"\",\"Sin fecha ingreso\",TODAY()-Tabla1[[#This Row],[fecha ingreso]])","v":1944},{"$f":"Tabla1[[#This Row],[DIAS EN CORRAL ]]*Tabla1[[#This Row],[Costo diario corral]]","v":616753.43999999994},null,null,null,null,null,null,null,null,null,null,null,null,null,null,null,null,null,"Maquinaria industrial"]
[41,"DS1402","2021-06-07","Automovil",{"$f":"IF(Tabla1[[#This Row],[Tipo]]=\"\",\"Sin tipo vehículo\",LOOKUP(Tabla1[[#This Row],[Tipo]],Tabla2[Tipo vehículo],Tabla2[Valor diario]))","v":1586},"MITSUBISHI","LANCER 1.8 GL",1992,"BLANCO","ABANDONADO VIA PUBLIC.","Sin antecedentes","Sin antecedentes","INES PILAR ALFARO ORDENES",{"$f":"IF(Tabla1[[#This Row],[fecha ingreso]]=\"\",\"Sin fecha ingreso\",TODAY()-Tabla1[[#This Row],[fecha ingreso]])","v":882},{"$f":"IF(Tabla1[[#This Row],[fecha ingreso]]=\"\",\"Falta tipo vehículo\",Tabla1[[#This Row],[Costo diario corral]]*Tabla1[[#This Row],[DIAS EN CORRAL ]])","v":1398852},null,null,null,null,null,null,null,null,null,null,null,null,null,null,null,null,null,"Microbus"]
[null,"DU1206","2016-04-28","Automovil",{"$f":"IF(Tabla1[[#This Row],[Tipo]]=\"\",\"Sin tipo vehículo\",LOOKUP(Tabla1[[#This Row],[Tipo]],Tabla2[Tipo vehículo],Tabla2[Valor diario]))","v":1586},"CHEVROLET","CHEVETTE DL",1992,"AZUL","ESTRUCTURA ABOLLADA","JUZGADO POLICIA LOCAL","Parte 446","ABRAHAM JHOCHUAR TAOIA MARIN",{"$f":"IF(Tabla1[[#This Row],[fecha ingreso]]=\"\",\"Sin fecha ingreso\",TODAY()-Tabla1[[#This Row],[fecha ingreso]])","v":2748},{"$f":"Tabla1[[#This Row],[DIAS EN CORRAL ]]*Tabla1[[#This Row],[Costo diario corral]]","v":4358328},null,null,null,null,null,null,null,null,null,null,null,null,null,null,null,null,null,"Minibús"]
[4,"EA2593","2017-05-16","Automovil",{"$f":"IF(Tabla1[[#This Row],[Tipo]]=\"\",\"Sin tipo vehículo\",LOOKUP(Tabla1[[#This Row],[Tipo]],Tabla2[Tipo vehículo],Tabla2[Valor diario]))","v":1586},"NISSAN","SUNNY SEDAN 1.5 DX",1990,"BLANCO","INTENTO DE ATROPELLO A CARABINEROS","JUZGADO POLICIA LOCAL","PARTE 631","GALVARINO ANTONIO MOYANO VERA",{"$f":"IF(Tabla1[[#This Row],[fecha ingreso]]=\"\",\"Sin fecha ingreso\",TODAY()-Tabla1[[#This Row],[fecha ingreso]])","v":2365},{"$f":"IF(Tabla1[[#This Row],[fecha ingreso]]=\"\",\"Falta tipo vehículo\",Tabla1[[#This Row],[Costo diario corral]]*Tabla1[[#This Row],[DIAS EN CORRAL ]])","v":3750890},null,null,null,null,null,null,null,null,null,null,null,null,null,null,null,null,null,"Minibús escolar"]
[5,"EU1760","2016-12-19","Camioneta",{"$f":"IF(Tabla1[[#This Row],[Tipo]]=\"\",\"Sin tipo vehículo\",LOOKUP(Tabla1[[#This Row],[Tipo]],Tabla2[Tipo vehículo],Tabla2[Valor diario]))","v":1586},"CHEVROLET","LUV KB28L",1987,"AZUL","DOC. VENCIDO","JUZGADO POLICIA LOCAL","RUT: 11.734.870-9","SYLVIA DE LAS MERCEDES GAETE ORELLANA",{"$f":"IF(Tabla1[[#This Row],[fecha ingreso]]=\"\",\"Sin fecha ingreso\",TODAY()-Tabla1[[#This Row],[fecha ingreso]])","v":2513},{"$f":"IF(Tabla1[[#This Row],[fecha ingreso]]=\"\",\"Falta tipo vehículo\",Tabla1[[#This Row],[Costo diario corral]]*Tabla1[[#This Row],[DIAS EN CORRAL ]])","v":3985618},null,null,null,null,null,null,null,null,null,null,null,null,null,null,null,null,null,"Moto"]
[null,"FRTK30","2017-08-29","Camión",{"$f":"IF(Tabla1[[#This Row],[Tipo]]=\"\",\"Sin tipo vehículo\",LOOKUP(Tabla1[[#This Row],[Tipo]],Tabla2[Tipo vehículo],Tabla2[Valor diario]))","v":3173},"HYUNDAI","HD 65 DLX",2013,"BLANCO","Recuperado por robo, se contactó a la aseguradora MAPFRE ","Fiscalía de Casablanca","RUC 1700747166-1","MIGUEL PEÑA QUINTANA",{"$f":"IF(Tabla1[[#This Row],[fecha ingreso]]=\"\",\"Sin fecha ingreso\",TODAY()-Tabla1[[#This Row],[fecha ingreso]])","v":2260},{"$f":"Tabla1[[#This Row],[DIAS EN CORRAL ]]*Tabla1[[#This Row],[Costo diario corral]]","v":7170980},null,null,null,null,null,null,null,null,null,null,null,null,null,null,null,null,null,"Station wagon"]
[35,"FU6972","2015-05-02","Automovil",{"$f":"IF(Tabla1[[#This Row],[Tipo]]=\"\",\"Sin tipo vehículo\",LOOKUP(Tabla1[[#This Row],[Tipo]],Tabla2[Tipo vehículo],Tabla2[Valor diario]))","v":1586},"FIAT","147 GLS",1983,"BLANCO","DOCUMENTOS VENCIDOS","JUZGADO POLICIA LOCAL","Parte 330-2015","VICTOR ANTONIO RIVAS ARCOS",{"$f":"IF(Tabla1[[#This Row],[fecha ingreso]]=\"\",\"Sin fecha ingreso\",TODAY()-Tabla1[[#This Row],[fecha ingreso]])","v":3110},{"$f":"Tabla1[[#This Row],[Costo diario corral]]*Tabla1[[#This Row],[DIAS EN CORRAL ]]","v":4932460},null,null,null,null,null,null,null,null,null,null,null,null,null,null,null,null,null,"Taxi colectivo"]
[6,"GK4370","2015-02-17","Automovil",{"$f":"IF(Tabla1[[#This Row],[Tipo]]=\"\",\"Sin tipo vehículo\",LOOKUP(Tabla1[[#This Row],[Tipo]],Tabla2[Tipo vehículo],Tabla2[Valor diario]))","v":1586},"FIAT","147 GL",1980,"AZUL","DOC. VENCIDO","JUZGADO POLICIA LOCAL","PARTE: 256","PIERO SEGUNDO SALINAS CABALLERO",{"$f":"IF(Tabla1[[#This Row],[fecha ingreso]]=\"\",\"Sin fecha ingreso\",TODAY()-Tabla1[[#This Row],[fecha ingreso]])","v":3184},{"$f":"IF(Tabla1[[#This Row],[fecha ingreso]]=\"\",\"Falta tipo vehículo\",Tabla1[[#This Row],[Costo diario corral]]*Tabla1[[#This Row],[DIAS EN CORRAL ]])","v":5049824},null,null,null,null,null,null,null,null,null,null,null,null,null,null,null,null,null,"Taxi ejecutivo"]
[7,"GV7647","2016-05-18","Automovil",{"$f":"IF(Tabla1[[#This Row],[Tipo]]=\"\",\"Sin tipo vehículo\",LOOKUP(Tabla1[[#This Row],[Tipo]],Tabla2[Tipo vehículo],Tabla2[Valor diario]))","v":1586},"MITSUBISHI","LANCER 1,5",1989,"ROJO","ESTRUCTURA ABOLLADA","JUZGADO POLICIA LOCAL","ROL: 106.081","JOSÉ LUIS VICENCIO ROBLES ",{"$f":"IF(Tabla1[[#This Row],[fecha ingreso]]=\"\",\"Sin fecha ingreso\",TODAY()-Tabla1[[#This Row],[fecha ingreso]])","v":2728},{"$f":"IF(Tabla1[[#This Row],[fecha ingreso]]=\"\",\"Falta tipo vehículo\",Tabla1[[#This Row],[Costo diario corral]]*Tabla1[[#This Row],[DIAS EN CORRAL ]])","v":4326608},null,null,null,null,null,null,null,null,null,null,null,null,null,null,null,null,null,"Taxi turismo"]
[8,"GY2481","2017-05-16","Automovil",{"$f":"IF(Tabla1[[#This Row],[Tipo]]=\"\",\"Sin tipo vehículo\",LOOKUP(Tabla1[[#This Row],[Tipo]],Tabla2[Tipo vehículo],Tabla2[Valor diario]))","v":1586},"NISSAN","SUNNY 1.5 DX",1989,"ROJO","SIN DOCUMENTOS","JUZGADO POLICIA LOCAL","PARTE 638","ROBERTO CARLOS CUADRA LAGOS",{"$f":"IF(Tabla1[[#This Row],[fecha ingreso]]=\"\",\"Sin fecha ingreso\",TODAY()-Tabla1[[#This Row],[fecha ingreso]])","v":2365},{"$f":"IF(Tabla1[[#This Row],[fecha ingreso]]=\"\",\"Falta tipo vehículo\",Tabla1[[#This Row],[Costo diario corral]]*Tabla1[[#This Row],[DIAS EN CORRAL ]])","v":3750890},null,null,null,null,null,null,null,null,null,null,null,null,null,null,null,null,null,"Taxibus"]
[9,"HR3479","2015-02-24","Automovil",{"$f":"IF(Tabla1[[#This Row],[Tipo]]=\"\",\"Sin tipo vehículo\",LOOKUP(Tabla1[[#This Row],[Tipo]],Tabla2[Tipo vehículo],Tabla2[Valor diario]))","v":1586},"FIAT","147 GL",1980,"GRIS","SIN DOCUMENTOS","JUZGADO POLICIA LOCAL","PARTE 314","JUAN SALVADOR CASTAÑEDA PONCE",{"$f":"IF(Tabla1[[#This Row],[fecha ingreso]]=\"\",\"Sin fecha ingreso\",TODAY()-Tabla1[[#This Row],[fecha ingreso]])","v":3177},{"$f":"IF(Tabla1[[#This Row],[fecha ingreso]]=\"\",\"Falta tipo vehículo\",Tabla1[[#This Row],[Costo diario corral]]*Tabla1[[#This Row],[DIAS EN CORRAL ]])","v":5038722},null,null,null,null,null,null,null,null,null,null,null,null,null,null,null,null,null,"Todo terreno"]
[10,"HR9980","2017-08-17","Camioneta",{"$f":"IF(Tabla1[[#This Row],[Tipo]]=\"\",\"Sin tipo vehículo\",LOOKUP(Tabla1[[#This Row],[Tipo]],Tabla2[Tipo vehículo],Tabla2[Valor diario]))","v":1586},"CHEVROLET","LUV 1.6",1990,"BLANCO","SIN DOCUMENTOS","JUZGADO POLICIA LOCAL","PARTE:2141 Y 224","CHARLES IVAN SALVADOR TAPIA VERA",{"$f":"IF(Tabla1[[#This Row],[fecha ingreso]]=\"\",\"Sin fecha ingreso\",TODAY()-Tabla1[[#This Row],[fecha ingreso]])","v":2272},{"$f":"IF(Tabla1[[#This Row],[fecha ingreso]]=\"\",\"Falta tipo vehículo\",Tabla1[[#This Row],[Costo diario corral]]*Tabla1[[#This Row],[DIAS EN CORRAL ]])","v":3603392},null,null,null,null,null,null,null,null,null,null,null,null,null,null,null,null,null,"Tractocamión"]
[11,"KP9846","2019-06-05","Automovil",{"$f":"IF(Tabla1[[#This Row],[Tipo]]=\"\",\"Sin tipo vehículo\",LOOKUP(Tabla1[[#This Row],[Tipo]],Tabla2[Tipo vehículo],Tabla2[Valor diario]))","v":1586},"MAZDA ","323 GLX 1.6",1993,"ROJO","DOCUMENTOS VENCIDOS","JUZGADO POLICIA LOCAL","Sin antecedentes","LUIS RAMON SAEZ CASTRO",{"$f":"IF(Tabla1[[#This Row],[fecha ingreso]]=\"\",\"Sin fecha ingreso\",TODAY()-Tabla1[[#This Row],[fecha ingreso]])","v":1615},{"$f":"IF(Tabla1[[#This Row],[fecha ingreso]]=\"\",\"Falta tipo vehículo\",Tabla1[[#This Row],[Costo diario corral]]*Tabla1[[#This Row],[DIAS EN CORRAL ]])","v":2561390},null,null,null,null,null,null,null,null,null,null,null,null,null,null,null,null,null,"Triciclo (torito)"]
[57,"KWY69","2017-07-18","MOTO",{"$f":"IF(Tabla1[[#This Row],[Tipo]]=\"\",\"Sin tipo vehículo\",LOOKUP(Tabla1[[#This Row],[Tipo]],Tabla2[Tipo vehículo],Tabla2[Valor diario]))","v":317.26},"WANGYE","WY150T 3",2019,"ROJO","DOCUMENTOS VENCIDOS","JUZGADO POLICIA LOCAL","Parte 1432-2021, Of. 1090 de Carabineros de Casablanca","NAIRIN MARIA LOPEZ FLORES",{"$f":"IF(Tabla1[[#This Row],[fecha ingreso]]=\"\",\"Sin fecha ingreso\",TODAY()-Tabla1[[#This Row],[fecha ingreso]])","v":2302},{"$f":"Tabla1[[#This Row],[DIAS EN CORRAL ]]*Tabla1[[#This Row],[Costo diario corral]]","v":730332.52}]
[12,"LB4934","2017-01-06","Automovil",{"$f":"IF(Tabla1[[#This Row],[Tipo]]=\"\",\"Sin tipo vehículo\",LOOKUP(Tabla1[[#This Row],[Tipo]],Tabla2[Tipo vehículo],Tabla2[Valor diario]))","v":1586},"NISSAN","SENTRA 1.6 EX SALOON",1994,"BLANCO","DOC. VENCIDO","JUZGADO POLICIA LOCAL","RUT:16.486.692-0","TERESA AMADA TOBAR RODA",{"$f":"IF(Tabla1[[#This Row],[fecha ingreso]]=\"\",\"Sin fecha ingreso\",TODAY()-Tabla1[[#This Row],[fecha ingreso]])","v":2495},{"$f":"IF(Tabla1[[#This Row],[fecha ingreso]]=\"\",\"Falta tipo vehículo\",Tabla1[[#This Row],[Costo diario corral]]*Tabla1[[#This Row],[DIAS EN CORRAL ]])","v":3957070}]
[13,"LH9219","2017-08-11","Automovil",{"$f":"IF(Tabla1[[#This Row],[Tipo]]=\"\",\"Sin tipo vehículo\",LOOKUP(Tabla1[[#This Row],[Tipo]],Tabla2[Tipo vehículo],Tabla2[Valor diario]))","v":1586},"PEUGEOT","405 SXI 1.8",1994,"GRIS TUNGSTENO","SIN DOCUMENTOS","JUZGADO POLICIA LOCAL","PARTE 1139","MARCOS ANTONIO BECERRA GAMBOA",{"$f":"IF(Tabla1[[#This Row],[fecha ingreso]]=\"\",\"Sin fecha ingreso\",TODAY()-Tabla1[[#This Row],[fecha ingreso]])","v":2278},{"$f":"IF(Tabla1[[#This Row],[fecha ingreso]]=\"\",\"Falta tipo vehículo\",Tabla1[[#This Row],[Costo diario corral]]*Tabla1[[#This Row],[DIAS EN CORRAL ]])","v":3612908}]
[14,"LP9354","2018-01-23","Automovil",{"$f":"IF(Tabla1[[#This Row],[Tipo]]=\"\",\"Sin tipo vehículo\",LOOKUP(Tabla1[[#This Row],[Tipo]],Tabla2[Tipo vehículo],Tabla2[Valor diario]))","v":1586},"PEUGEOT","405 STI 2.0",1995,"AZUL MING","VEHICULO ABANDONADO EN V/P","JUZGADO POLICIA LOCAL","Of. 24 del 11-01-2018","INVERSIONES SAN JORGE S.A",{"$f":"IF(Tabla1[[#This Row],[fecha ingreso]]=\"\",\"Sin fecha ingreso\",TODAY()-Tabla1[[#This Row],[fecha ingreso]])","v":2113},{"$f":"IF(Tabla1[[#This Row],[fecha ingreso]]=\"\",\"Falta tipo vehículo\",Tabla1[[#This Row],[Costo diario corral]]*Tabla1[[#This Row],[DIAS EN CORRAL ]])","v":3351218}]
[15,"LV1305","2018-07-29","Automovil",{"$f":"IF(Tabla1[[#This Row],[Tipo]]=\"\",\"Sin tipo vehículo\",LOOKUP(Tabla1[[#This Row],[Tipo]],Tabla2[Tipo vehículo],Tabla2[Valor diario]))","v":1586},"OPEL","VECTRA 2.0 E",1995,"ROJO BURDEOS","FISCALIA","Fiscalia de Casablanca","PARTE 1193","SALAS Y SALAS SOCIEDAD COMERCIAL Y DE SERVICIOS LIMITADA",{"$f":"IF(Tabla1[[#This Row],[fecha ingreso]]=\"\",\"Sin fecha ingreso\",TODAY()-Tabla1[[#This Row],[fecha ingreso]])","v":1926},{"$f":"IF(Tabla1[[#This Row],[fecha ingreso]]=\"\",\"Falta tipo vehículo\",Tabla1[[#This Row],[Costo diario corral]]*Tabla1[[#This Row],[DIAS EN CORRAL ]])","v":3054636}]
[52,"MA501","2017-08-17","MOTO",{"$f":"IF(Tabla1[[#This Row],[Tipo]]=\"\",\"Sin tipo vehículo\",LOOKUP(Tabla1[[#This Row],[Tipo]],Tabla2[Tipo vehículo],Tabla2[Valor diario]))","v":317.26},"KINLON","JL200GY 2",2012,"NEGRO","DOCUMENTACION VENCIDA","JUZGADO POLICIA LOCAL","Sin antecedentes","PEDRO ALBERTO HERNANDEZ TOLEDO",{"$f":"IF(Tabla1[[#This Row],[fecha ingreso]]=\"\",\"Sin fecha ingreso\",TODAY()-Tabla1[[#This Row],[fecha ingreso]])","v":2272},{"$f":"Tabla1[[#This Row],[DIAS EN CORRAL ]]*Tabla1[[#This Row],[Costo diario corral]]","v":720814.72}]
[16,"NE4479","2016-03-23","Automovil",{"$f":"IF(Tabla1[[#This Row],[Tipo]]=\"\",\"Sin tipo vehículo\",LOOKUP(Tabla1[[#This Row],[Tipo]],Tabla2[Tipo vehículo],Tabla2[Valor diario]))","v":1586},"CHEVROLET","MONZA GL 1.8",1995,"NEGRO ROJO","ABANDONADO VIA PUBLIC.","JUZGADO POLICIA LOCAL","PARTE 305 /","LUIS ENRIQUE LORCA ZAMBRANO",{"$f":"IF(Tabla1[[#This Row],[fecha ingreso]]=\"\",\"Sin fecha ingreso\",TODAY()-Tabla1[[#This Row],[fecha ingreso]])","v":2784},{"$f":"IF(Tabla1[[#This Row],[fecha ingreso]]=\"\",\"Falta tipo vehículo\",Tabla1[[#This Row],[Costo diario corral]]*Tabla1[[#This Row],[DIAS EN CORRAL ]])","v":4415424}]
[32,"NJ580","2017-07-07","Moto",{"$f":"IF(Tabla1[[#This Row],[Tipo]]=\"\",\"Sin tipo vehículo\",LOOKUP(Tabla1[[#This Row],[Tipo]],Tabla2[Tipo vehículo],Tabla2[Valor diario]))","v":317.26},"LIFAN ","LF 150 11",2006,"NEGRO GRIS","DOCUMENTACION VENCIDA","JUZGADO POLICIA LOCAL","Sin antecedentes","CRISTIAN ARTURO PICERO CARRASCO",{"$f":"IF(Tabla1[[#This Row],[fecha ingreso]]=\"\",\"Sin fecha ingreso\",TODAY()-Tabla1[[#This Row],[fecha ingreso]])","v":2313},{"$f":"Tabla1[[#This Row],[DIAS EN CORRAL ]]*Tabla1[[#This Row],[Costo diario corral]]","v":733822.38}]
[30,"NN3286","2021-07-07","Automovil",{"$f":"IF(Tabla1[[#This Row],[Tipo]]=\"\",\"Sin tipo vehículo\",LOOKUP(Tabla1[[#This Row],[Tipo]],Tabla2[Tipo vehículo],Tabla2[Valor diario]))","v":1586},"DAEWOO","RACER",1995,"BLANCO","DOCUMENTACION VENCIDA","JUZGADO POLICIA LOCAL","Sin antecedentes","DIEGO ARMANDO CHAURA VARGAS",{"$f":"IF(Tabla1[[#This Row],[fecha ingreso]]=\"\",\"Sin fecha ingreso\",TODAY()-Tabla1[[#This Row],[fecha ingreso]])","v":852},{"$f":"Tabla1[[#This Row],[DIAS EN CORRAL ]]*Tabla1[[#This Row],[Costo diario corral]]","v":1351272}]
[47,"OP991","2021-07-07","Moto",{"$f":"IF(Tabla1[[#This Row],[Tipo]]=\"\",\"Sin tipo vehículo\",LOOKUP(Tabla1[[#This Row],[Tipo]],Tabla2[Tipo vehículo],Tabla2[Valor diario]))","v":317.26},"HONDA","CGL 125 124CC",2014,"PLATEADO  ","SIN DOCUMENTOS","JUZGADO POLICIA LOCAL","Sin antecedentes","MONICA ANGELICA MUNITA ROURET",{"$f":"IF(Tabla1[[#This Row],[fecha ingreso]]=\"\",\"Sin fecha ingreso\",TODAY()-Tabla1[[#This Row],[fecha ingreso]])","v":852},{"$f":"Tabla1[[#This Row],[DIAS EN CORRAL ]]*Tabla1[[#This Row],[Costo diario corral]]","v":270305.52}]
[17,"PA1301","2016-02-22","Automovil",{"$f":"IF(Tabla1[[#This Row],[Tipo]]=\"\",\"Sin tipo vehículo\",LOOKUP(Tabla1[[#This Row],[Tipo]],Tabla2[Tipo vehículo],Tabla2[Valor diario]))","v":1586},"MAZDA","ARTIS GLX BPS 1.6",1996,"BLANCO","SIN DOCUMENTOS","JUZGADO POLICIA LOCAL","RUc: 15.891.566-9","MANUEL EDUARDO GUTIERREZ URREA",{"$f":"IF(Tabla1[[#This Row],[fecha ingreso]]=\"\",\"Sin fecha ingreso\",TODAY()-Tabla1[[#This Row],[fecha ingreso]])","v":2814},{"$f":"IF(Tabla1[[#This Row],[fecha ingreso]]=\"\",\"Falta tipo vehículo\",Tabla1[[#This Row],[Costo diario corral]]*Tabla1[[#This Row],[DIAS EN CORRAL ]])","v":4463004}]
[54,"PP333","2017-11-22","Moto",{"$f":"IF(Tabla1[[#This Row],[Tipo]]=\"\",\"Sin tipo vehículo\",LOOKUP(Tabla1[[#This Row],[Tipo]],Tabla2[Tipo vehículo],Tabla2[Valor diario]))","v":317.26},"VENTO","PHANTERA GT5",2007,"NEGRO","Sin documentación al día","JUZGADO POLICIA LOCAL","Parte 1656, oficio 742 Carabineros de fecha 22-11-2017","GIOVANNI ALEXIS SILVA YAÑEZ",{"$f":"IF(Tabla1[[#This Row],[fecha ingreso]]=\"\",\"Sin fecha ingreso\",TODAY()-Tabla1[[#This Row],[fecha ingreso]])","v":2175},{"$f":"Tabla1[[#This Row],[DIAS EN CORRAL ]]*Tabla1[[#This Row],[Costo diario corral]]","v":690040.5}]
[19,"PZ1709","2014-07-08","Automovil",{"$f":"IF(Tabla1[[#This Row],[Tipo]]=\"\",\"Sin tipo vehículo\",LOOKUP(Tabla1[[#This Row],[Tipo]],Tabla2[Tipo vehículo],Tabla2[Valor diario]))","v":1586},"OPEL","ASTRA 60 PWR",1997,"ROJO BURDEO","SIN  DOCUMENTOS","JUZGADO POLICIA LOCAL","RUT:13.543.381-0","JUAN FERNANDO COVARRUBIAS SOTO",{"$f":"IF(Tabla1[[#This Row],[fecha ingreso]]=\"\",\"Sin fecha ingreso\",TODAY()-Tabla1[[#This Row],[fecha ingreso]])","v":3408},{"$f":"IF(Tabla1[[#This Row],[fecha ingreso]]=\"\",\"Falta tipo vehículo\",Tabla1[[#This Row],[Costo diario corral]]*Tabla1[[#This Row],[DIAS EN CORRAL ]])","v":5405088}]
[49,"QC884","2020-07-08","Moto",{"$f":"IF(Tabla1[[#This Row],[Tipo]]=\"\",\"Sin tipo vehículo\",LOOKUP(Tabla1[[#This Row],[Tipo]],Tabla2[Tipo vehículo],Tabla2[Valor diario]))","v":317.26},"HONDA","CGL 125  ",2013,"PLATEADO PLATA","SIN  DOCUMENTOS","JUZGADO POLICIA LOCAL","Parte 761 2022, Oficio 284 de la Quinta Comisaria de Casablanca","MANUEL ANDRES NUÑEZ FREDES",{"$f":"IF(Tabla1[[#This Row],[fecha ingreso]]=\"\",\"Sin fecha ingreso\",TODAY()-Tabla1[[#This Row],[fecha ingreso]])","v":1216},{"$f":"IF(Tabla1[[#This Row],[fecha ingreso]]=\"\",\"Falta tipo vehículo\",Tabla1[[#This Row],[Costo diario corral]]*Tabla1[[#This Row],[DIAS EN CORRAL ]])","v":385788.15999999997}]
[20,"RN6952","2014-08-13","Camioneta",{"$f":"IF(Tabla1[[#This Row],[Tipo]]=\"\",\"Sin tipo vehículo\",LOOKUP(Tabla1[[#This Row],[Tipo]],Tabla2[Tipo vehículo],Tabla2[Valor diario]))","v":1586},"OPEL","CORSA PICK UP STD ",1997,"ROJO","SIN DOCUMENTOS","JUZGADO POLICIA LOCAL","PARTE 1045","JORGE MIGUEL ARANGUIZ LÓPEZ",{"$f":"IF(Tabla1[[#This Row],[fecha ingreso]]=\"\",\"Sin fecha ingreso\",TODAY()-Tabla1[[#This Row],[fecha ingreso]])","v":3372},{"$f":"IF(Tabla1[[#This Row],[fecha ingreso]]=\"\",\"Falta tipo vehículo\",Tabla1[[#This Row],[Costo diario corral]]*Tabla1[[#This Row],[DIAS EN CORRAL ]])","v":5347992}]
[21,"SG8580","2016-10-12","Automovil",{"$f":"IF(Tabla1[[#This Row],[Tipo]]=\"\",\"Sin tipo vehículo\",LOOKUP(Tabla1[[#This Row],[Tipo]],Tabla2[Tipo vehículo],Tabla2[Valor diario]))","v":1586},"FORD","MONDEO CLX 1.8 AUT",1998,"GRIS PLATINO","DOC. VENCIDO","JUZGADO POLICIA LOCAL","PARTE 546 ","PATRICIA ALEJANDRA HORMAZABAL VILLA",{"$f":"IF(Tabla1[[#This Row],[fecha ingreso]]=\"\",\"Sin fecha ingreso\",TODAY()-Tabla1[[#This Row],[fecha ingreso]])","v":2581},{"$f":"IF(Tabla1[[#This Row],[fecha ingreso]]=\"\",\"Falta tipo vehículo\",Tabla1[[#This Row],[Costo diario corral]]*Tabla1[[#This Row],[DIAS EN CORRAL ]])","v":4093466}]
[22,"TE7367","2016-04-24","Automovil",{"$f":"IF(Tabla1[[#This Row],[Tipo]]=\"\",\"Sin tipo vehículo\",LOOKUP(Tabla1[[#This Row],[Tipo]],Tabla2[Tipo vehículo],Tabla2[Valor diario]))","v":1586},"PEUGEOT","106 EQUINOXE 1.1",1999,"AZUL NEVIS","SIN DOCUMENTOS","JUZGADO POLICIA LOCAL","OFICIO : 306","FRANCISCO JAVIER FERNANDEZ ZUÑIGA",{"$f":"IF(Tabla1[[#This Row],[fecha ingreso]]=\"\",\"Sin fecha ingreso\",TODAY()-Tabla1[[#This Row],[fecha ingreso]])","v":2752},{"$f":"IF(Tabla1[[#This Row],[fecha ingreso]]=\"\",\"Falta tipo vehículo\",Tabla1[[#This Row],[Costo diario corral]]*Tabla1[[#This Row],[DIAS EN CORRAL ]])","v":4364672}]
[58,"TU985","2020-07-08","Moto",{"$f":"IF(Tabla1[[#This Row],[Tipo]]=\"\",\"Sin tipo vehículo\",LOOKUP(Tabla1[[#This Row],[Tipo]],Tabla2[Tipo vehículo],Tabla2[Valor diario]))","v":317.26},"DAYUN ","DY150 12",2008,"NEGRO","SIN DOCUMENTOS","JUZGADO POLICIA LOCAL",null,"CESAR MARIO NUÑEZ ESPINOZA ",{"$f":"IF(Tabla1[[#This Row],[fecha ingreso]]=\"\",\"Sin fecha ingreso\",TODAY()-Tabla1[[#This Row],[fecha ingreso]])","v":1216},{"$f":"Tabla1[[#This Row],[DIAS EN CORRAL ]]*Tabla1[[#This Row],[Costo diario corral]]","v":385788.15999999997}]
[31,"UL0206","2020-07-08","Moto",{"$f":"IF(Tabla1[[#This Row],[Tipo]]=\"\",\"Sin tipo vehículo\",LOOKUP(Tabla1[[#This Row],[Tipo]],Tabla2[Tipo vehículo],Tabla2[Valor diario]))","v":317.26},"TAKASAKI","WY150T 13",2008,"ROJO","SIN DOCUMENTOS","JUZGADO POLICIA LOCAL",null,"MARIA ANGELICA VALDES IBAÑEZ",{"$f":"IF(Tabla1[[#This Row],[fecha ingreso]]=\"\",\"Sin fecha ingreso\",TODAY()-Tabla1[[#This Row],[fecha ingreso]])","v":1216},{"$f":"Tabla1[[#This Row],[DIAS EN CORRAL ]]*Tabla1[[#This Row],[Costo diario corral]]","v":385788.15999999997}]
[37,"VG0356","2020-07-08","MOTO",{"$f":"IF(Tabla1[[#This Row],[Tipo]]=\"\",\"Sin tipo vehículo\",LOOKUP(Tabla1[[#This Row],[Tipo]],Tabla2[Tipo vehículo],Tabla2[Valor diario]))","v":317.26},"QINGRI","QM200 2V",2009,"AZUL","SIN DOCUMENTOS","JUZGADO POLICIA LOCAL","Parte 221-2022, Of. 89-2022 de Carabineros de Casablanca","MARCOS CLEMENTE ARAVENA ARAVENA",{"$f":"IF(Tabla1[[#This Row],[fecha ingreso]]=\"\",\"Sin fecha ingreso\",TODAY()-Tabla1[[#This Row],[fecha ingreso]])","v":1216},{"$f":"Tabla1[[#This Row],[DIAS EN CORRAL ]]*Tabla1[[#This Row],[Costo diario corral]]","v":385788.15999999997}]
[60,"VS0152","2017-01-20","Moto",{"$f":"IF(Tabla1[[#This Row],[Tipo]]=\"\",\"Sin tipo vehículo\",LOOKUP(Tabla1[[#This Row],[Tipo]],Tabla2[Tipo vehículo],Tabla2[Valor diario]))","v":317.26},"HONDA","125 Elite ",2010,"Negro","Sin documentos al día","JUZGADO POLICIA LOCAL","Parte 3802 de fecha 30-12-2016","JOSE LUIS GUERRA BAHAMONDES",{"$f":"IF(Tabla1[[#This Row],[fecha ingreso]]=\"\",\"Sin fecha ingreso\",TODAY()-Tabla1[[#This Row],[fecha ingreso]])","v":2481},{"$f":"Tabla1[[#This Row],[DIAS EN CORRAL ]]*Tabla1[[#This Row],[Costo diario corral]]","v":787122.05999999994}]
[56,"VV0783","2017-01-20","Moto",{"$f":"IF(Tabla1[[#This Row],[Tipo]]=\"\",\"Sin tipo vehículo\",LOOKUP(Tabla1[[#This Row],[Tipo]],Tabla2[Tipo vehículo],Tabla2[Valor diario]))","v":317.26},"HONDA","STORM 125 CC",2010,"PLATEADO PLATA","Sin documentos al día","JUZGADO POLICIA LOCAL","Parte 1183-2022","LUIS ARTURO TORRES SANCHEZ ",{"$f":"IF(Tabla1[[#This Row],[fecha ingreso]]=\"\",\"Sin fecha ingreso\",TODAY()-Tabla1[[#This Row],[fecha ingreso]])","v":2481},{"$f":"Tabla1[[#This Row],[DIAS EN CORRAL ]]*Tabla1[[#This Row],[Costo diario corral]]","v":787122.05999999994}]
[23,"WC4991","2016-02-22","Automovil",{"$f":"IF(Tabla1[[#This Row],[Tipo]]=\"\",\"Sin tipo vehículo\",LOOKUP(Tabla1[[#This Row],[Tipo]],Tabla2[Tipo vehículo],Tabla2[Valor diario]))","v":1586},"VOLKSWAGEN","GOL G3 COMFORTLINE 1.6",2006,"BLANCO CRISTAL","PARTICIPA EN EVENTO MASIVO","JUZGADO POLICIA LOCAL","PARTE 119","RICARDO ANDRES CIFUENTES CANTILLANA",{"$f":"IF(Tabla1[[#This Row],[fecha ingreso]]=\"\",\"Sin fecha ingreso\",TODAY()-Tabla1[[#This Row],[fecha ingreso]])","v":2814},{"$f":"IF(Tabla1[[#This Row],[fecha ingreso]]=\"\",\"Falta tipo vehículo\",Tabla1[[#This Row],[Costo diario corral]]*Tabla1[[#This Row],[DIAS EN CORRAL ]])","v":4463004}]
[24,"WD5188","2016-07-19","Automovil",{"$f":"IF(Tabla1[[#This Row],[Tipo]]=\"\",\"Sin tipo vehículo\",LOOKUP(Tabla1[[#This Row],[Tipo]],Tabla2[Tipo vehículo],Tabla2[Valor diario]))","v":1586},"PEUGEOT","206 XR 1.6",2006,"BLANCO BANQUISE","SIN DOCUMENTOS","JUZGADO POLICIA LOCAL","PARTE 592","FERNANDA CAROLINA RUZ AGUIRRE",{"$f":"IF(Tabla1[[#This Row],[fecha ingreso]]=\"\",\"Sin fecha ingreso\",TODAY()-Tabla1[[#This Row],[fecha ingreso]])","v":2666},{"$f":"IF(Tabla1[[#This Row],[fecha ingreso]]=\"\",\"Falta tipo vehículo\",Tabla1[[#This Row],[Costo diario corral]]*Tabla1[[#This Row],[DIAS EN CORRAL ]])","v":4228276}]
[25,"XA2927","2015-01-23","Automovil",{"$f":"IF(Tabla1[[#This Row],[Tipo]]=\"\",\"Sin tipo vehículo\",LOOKUP(Tabla1[[#This Row],[Tipo]],Tabla2[Tipo vehículo],Tabla2[Valor diario]))","v":1586},"TOYOTA","YARIS XLI 1.5",2003,"PLATEADO SILVER MICA ME","SIN DOCUMENTOS","JUZGADO POLICIA LOCAL","RUT: 18.276.514-7","MIGUEL ANGEL PEREIRA CAVIERES",{"$f":"IF(Tabla1[[#This Row],[fecha ingreso]]=\"\",\"Sin fecha ingreso\",TODAY()-Tabla1[[#This Row],[fecha ingreso]])","v":3209},{"$f":"IF(Tabla1[[#This Row],[fecha ingreso]]=\"\",\"Falta tipo vehículo\",Tabla1[[#This Row],[Costo diario corral]]*Tabla1[[#This Row],[DIAS EN CORRAL ]])","v":5089474}]
[26,"ZJ1583","2016-02-22","Station wagon",{"$f":"IF(Tabla1[[#This Row],[Tipo]]=\"\",\"Sin tipo vehículo\",LOOKUP(Tabla1[[#This Row],[Tipo]],Tabla2[Tipo vehículo],Tabla2[Valor diario]))","v":1586},"TOYOTA","4 RUNNER SR5 4.0 AUT ",2006,"GRIS OSCURO MICA ME","DOC. VENCIDO","JUZGADO POLICIA LOCAL","rol: 14.73416","ORGANISMO TECNICO EJECUTOR DE CAPACITACION BICENTENARIO LIMITADA",{"$f":"IF(Tabla1[[#This Row],[fecha ingreso]]=\"\",\"Sin fecha ingreso\",TODAY()-Tabla1[[#This Row],[fecha ingreso]])","v":2814},{"$f":"IF(Tabla1[[#This Row],[fecha ingreso]]=\"\",\"Falta tipo vehículo\",Tabla1[[#This Row],[Costo diario corral]]*Tabla1[[#This Row],[DIAS EN CORRAL ]])","v":4463004}]
[27,"ZP1754","2016-07-19","Automovil",{"$f":"IF(Tabla1[[#This Row],[Tipo]]=\"\",\"Sin tipo vehículo\",LOOKUP(Tabla1[[#This Row],[Tipo]],Tabla2[Tipo vehículo],Tabla2[Valor diario]))","v":1586},"TOYOTA","YARIS GLI 1.5",2006,"BLANCO","VEHICULO FRONTIS CHOCADO","FISCALIA DE VALPARAISO","Parte 4591-2015, Subcomisaría IAT","GREGORIO HERNÁN MATUS ALVARADO",{"$f":"IF(Tabla1[[#This Row],[fecha ingreso]]=\"\",\"Sin fecha ingreso\",TODAY()-Tabla1[[#This Row],[fecha ingreso]])","v":2666},{"$f":"IF(Tabla1[[#This Row],[fecha ingreso]]=\"\",\"Falta tipo vehículo\",Tabla1[[#This Row],[Costo diario corral]]*Tabla1[[#This Row],[DIAS EN CORRAL ]])","v":4228276}]

{"sheet":"Por confirmar en corral","index":1,"n_rows":7,"n_cols":37,"rows_kept":7,"cut":false,"hidden":false,"merged":[]}
[]
[]
[]
[]
[46,"FSY63",null,"Moto",{"$f":"IF(Tabla1[[#This Row],[Tipo]]=\"\",\"Sin tipo vehículo\",LOOKUP(Tabla1[[#This Row],[Tipo]],Tabla2[Tipo vehículo],Tabla2[Valor diario]))","v":{"$error":"#VALUE!"}},"HONDA","CB 1",2016,"AZUL",null,null,null,null,"ENRIQUE MARCELO OLIVA OSORIO","10.714.860-4","RUIZ TAGLE 1449","ESTACION CENTRAL",{"$f":"IF(Tabla1[[#This Row],[fecha ingreso]]=\"\",\"Sin fecha ingreso\",TODAY()-Tabla1[[#This Row],[fecha ingreso]])","v":{"$error":"#VALUE!"}},null,null,null,null,null,null,null,null,null,null,null,null,null,null,null,null,null,null,"Taxi básico"]
[48,"KPW23",null,"MOTO",{"$f":"IF(Tabla1[[#This Row],[Tipo]]=\"\",\"Sin tipo vehículo\",LOOKUP(Tabla1[[#This Row],[Tipo]],Tabla2[Tipo vehículo],Tabla2[Valor diario]))","v":{"$error":"#VALUE!"}},"LIFAN ","LF 150 5",2019,"NEGRO",null,null,null,null,"CARLOS ALBERTO PINEDA ALVARAY ","25.645.607-9","EL BOSQUE NORTE 0440 PISO 07","LAS CONDES",{"$f":"IF(Tabla1[[#This Row],[fecha ingreso]]=\"\",\"Sin fecha ingreso\",TODAY()-Tabla1[[#This Row],[fecha ingreso]])","v":{"$error":"#VALUE!"}}]
[18,"PC8722","2019-12-26","Automovil",{"$f":"IF(Tabla1[[#This Row],[Tipo]]=\"\",\"Sin tipo vehículo\",LOOKUP(Tabla1[[#This Row],[Tipo]],Tabla2[Tipo vehículo],Tabla2[Valor diario]))","v":317.26},"MAZDA","323 GLX 1.6",1996,"BLANCO","DOC. VENCIDO","CARABINEROS DE CASABLANCA",null,null,"ISAAC ALBERNEGO CORDOVA BUGUEÑO","12.957.543-3","CONGO 1152, VILLA HERMOSA","VIÑA DEL MAR",{"$f":"IF(Tabla1[[#This Row],[fecha ingreso]]=\"\",\"Sin fecha ingreso\",TODAY()-Tabla1[[#This Row],[fecha ingreso]])","v":2222},{"$f":"IF(Tabla1[[#This Row],[fecha ingreso]]=\"\",\"Falta tipo vehículo\",Tabla1[[#This Row],[Costo diario corral]]*Tabla1[[#This Row],[DIAS EN CORRAL ]])","v":704951.72}]

{"sheet":"Tablas","index":2,"n_rows":27,"n_cols":2,"rows_kept":27,"cut":false,"hidden":false,"merged":[]}
[]
["UTM SEPTIEMBRE - 2023",63452]
[]
[]
["Tipo vehículo","Valor diario"]
["Automovil",{"$f":"ROUND($B$2*0.025,0)","v":1586}]
["Biciceta o similar",{"$f":"ROUND($B$2*0.005,0)","v":317}]
["Bus",{"$f":"ROUND($B$2*0.05,0)","v":3173}]
["Camión",{"$f":"ROUND($B$2*0.05,0)","v":3173}]
["Camioneta",{"$f":"ROUND($B$2*0.025,0)","v":1586}]
["Carro arrastre",{"$f":"ROUND($B$2*0.05,0)","v":3173}]
["Cuatrimoto",{"$f":"$B$2*0.005","v":317.26}]
["Furgón",{"$f":"ROUND($B$2*0.025,0)","v":1586}]
["Maquinaria industrial",{"$f":"ROUND($B$2*0.05,0)","v":3173}]
["Microbus",{"$f":"ROUND($B$2*0.05,0)","v":3173}]
["Minibús",{"$f":"ROUND($B$2*0.025,0)","v":1586}]
["Minibús escolar",{"$f":"ROUND($B$2*0.025,0)","v":1586}]
["Moto",{"$f":"$B$2*0.005","v":317.26}]
["Station wagon",{"$f":"ROUND($B$2*0.025,0)","v":1586}]
["Taxi básico",1586]
["Taxi colectivo",1586]
["Taxi ejecutivo",1586]
["Taxi turismo",1586]
["Taxibus",{"$f":"ROUND($B$2*0.05,0)","v":3173}]
["Todo terreno",1586]
["Tractocamión",{"$f":"ROUND($B$2*0.05,0)","v":3173}]
["Triciclo (torito)",{"$f":"ROUND($B$2*0.005,0)","v":317}]